bitfinex/quotes_ETHUSD_20250508
["timestamp","ask_amount","ask_price","bid_price","bid_amount"]
[1746695725062,9.654296,1939.2,1939.0,0.24984449]
[1746695725386,4.49751234,1939.2,1939.0,5.40707727]
[1746695725586,4.49751234,1939.2,1939.1,0.54070773]
[1746695725791,4.49751234,1939.2,1939.1,0.78640468]
[1746695726019,4.49751234,1939.2,1939.1,0.24569695]
[1746695726579,4.49751234,1939.2,1939.1,1.07839695]
[1746695726821,4.49751234,1939.2,1939.1,1.17269695]
[1746695727326,4.49751234,1939.2,1939.1,6.32972856]
[1746695727895,4.49751234,1939.2,1939.1,9.32972856]
[1746695728096,4.49751234,1939.2,1939.1,10.81731159]
[1746695728292,4.49751234,1939.2,1939.1,22.40938961]
[1746695728490,4.49751234,1939.2,1939.1,27.45810561]
[1746695729222,5.15589148,1939.6,1939.2,8.15675379]
[1746695729420,5.15609826,1939.5,1939.3,6.89567538]
[1746695729645,5.15589148,1939.6,1939.3,7.1917756]
[1746695729646,5.1558569,1939.6,1939.3,7.1917756]
[1746695730423,5.15623388,1939.4,1939.3,0.24454048]
[1746695731724,5.95443388,1939.4,1939.3,0.4336653]
[1746695732610,5.90443388,1939.4,1939.3,0.4336653]
[1746695733350,5.10623388,1939.4,1939.3,0.4336653]
[1746695741645,5.10623388,1939.4,1939.3,1.2497653]
[1746695741847,5.15605968,1939.5,1939.3,1.2497653]
[1746695741848,5.15611283,1939.5,1939.3,1.99217134]
[1746695742246,5.15611283,1939.5,1939.3,2.04373218]
[1746695742742,5.15611283,1939.5,1939.3,1.99217134]
[1746695742917,5.15623388,1939.4,1939.3,1.99217134]
[1746695743124,5.15588475,1939.6,1939.3,1.99217134]
[1746695743335,5.15599911,1939.5,1939.3,2.04373093]
[1746695743910,5.15599911,1939.5,1939.3,1.99217134]
[1746695744116,10.31221074,1939.5,1939.3,1.99217134]
[1746695744330,5.15623388,1939.4,1939.3,1.99217134]
[1746695744544,5.15599911,1939.5,1939.3,1.99217134]
[1746695745019,5.15599911,1939.5,1939.3,2.04373103]
[1746695746256,5.15579863,1939.6,1939.3,2.04373103]
[1746695746723,5.15558987,1939.7,1939.4,6.08]
[1746695746932,5.15541624,1939.8,1939.5,1.03481327]
[1746695747121,5.15546021,1939.7,1939.5,1.03481327]
[1746695747331,5.15540258,1939.8,1939.6,6.904]
[1746695747655,5.15540258,1939.8,1939.7,6.50641861]
[1746695748325,5.15501303,1939.9,1939.7,7.23946047]
[1746695748527,5.15416824,1940.2,1939.9,0.824]
[1746695748528,5.15453128,1940.1,1939.9,0.824]
[1746695748848,5.15453128,1940.1,1940.0,0.42376642]
[1746695749052,5.15421306,1940.2,1940.0,6.50376642]
[1746695749364,5.15437348,1940.1,1940.0,6.50376642]
[1746695749528,5.15437348,1940.1,1940.0,6.89641023]
[1746695750162,5.15437348,1940.1,1940.0,6.50376642]
[1746695750532,6.26355619,1940.1,1940.0,6.50376642]
[1746695750759,7.04665619,1940.1,1940.0,0.42376642]
[1746695750976,5.15517063,1939.8,1939.7,0.09427083]
[1746695751154,5.15517063,1939.8,1939.7,0.48389064]
[1746695751440,5.93827063,1939.8,1939.7,0.38961981]
[1746695751627,7.58999859,1939.8,1939.7,0.38961981]
[1746695751824,5.1554364,1939.7,1939.6,6.08]
[1746695752123,5.15676567,1939.2,1939.1,6.08]
[1746695752329,5.15676567,1939.2,1939.1,6.47080412]
[1746695752669,5.15658374,1939.3,1939.1,6.47080412]
[1746695752869,5.15658374,1939.3,1939.2,0.64708041]
[1746695753266,5.15658374,1939.3,1939.2,1.03768709]
[1746695753476,5.1561443,1939.5,1939.4,0.7662]
[1746695753967,5.1561443,1939.5,1939.4,1.15641187]
[1746695754338,5.15549693,1939.7,1939.4,4.15641187]
[1746695754540,5.15549693,1939.7,1939.5,6.08]
[1746695754734,5.97215411,1940.0,1939.5,6.08]
[1746695754735,5.15527557,1939.8,1939.6,1.18201715]
[1746695754939,5.1554364,1939.7,1939.6,0.38981715]
[1746695756250,5.44449697,1939.7,1939.6,0.38981715]
[1746695756454,7.41387422,1939.7,1939.6,0.38981715]
[1746695756741,5.1557022,1939.6,1939.5,6.08]
[1746695757076,5.1557022,1939.6,1939.5,6.4700145]
[1746695757951,5.44476277,1939.6,1939.5,6.4700145]
[1746695759272,5.44476277,1939.6,1939.5,0.3900145]
[1746695759812,5.44476277,1939.6,1939.1,6.08]
[1746695759813,5.15608427,1939.5,1939.2,0.81436716]
[1746695759936,5.15559182,1939.7,1939.3,0.7628]
[1746695760136,5.1558657,1939.6,1939.3,0.7628]
[1746695760768,5.15623388,1939.4,1939.3,4.83076504]
[1746695760979,5.15623388,1939.4,1939.3,1.83076504]
[1746695761278,5.15672767,1939.3,1939.1,10.27237802]
[1746695761586,5.15672767,1939.3,1939.2,0.09429514]
[1746695761789,5.15676567,1939.2,1939.1,6.08]
[1746695762450,5.44580692,1939.2,1939.1,6.08]
[1746695762955,5.15676567,1939.2,1939.1,6.08]
[1746695764366,5.15782958,1938.8,1938.7,6.08]
[1746695764564,5.15782958,1938.8,1938.6,3.48573043]
[1746695764565,5.15809563,1938.7,1938.6,9.56573043]
[1746695765860,5.15809563,1938.7,1938.6,6.08]
[1746695768376,5.15889393,1938.4,1938.3,6.08]
[1746695768577,5.15889393,1938.4,1938.3,6.65575311]
[1746695769786,5.15889393,1938.4,1938.3,6.08]
[1746695772099,5.15942627,1938.2,1938.1,1.16210342]
[1746695772451,5.15942627,1938.2,1938.1,0.38500342]
[1746695772655,5.15969248,1938.1,1938.0,6.08]
[1746695773388,5.15933761,1938.3,1938.0,6.47413792]
[1746695773589,5.15876639,1938.5,1938.2,0.7661]
[1746695773779,5.15897663,1938.4,1938.2,0.7661]
[1746695775098,10.31810674,1938.4,1938.2,0.7661]
[1746695775963,5.15897663,1938.4,1938.2,0.7661]
[1746695776466,5.15916008,1938.3,1938.2,0.7661]
[1746695776687,5.15916008,1938.3,1938.2,1.55449405]
[1746695777443,5.15916008,1938.3,1938.2,7.63449405]
[1746695777732,5.15895431,1938.4,1938.2,7.63449405]
[1746695778120,5.15916008,1938.3,1938.2,7.63449405]
[1746695778898,18.97095627,1941.0,1938.2,7.63449405]
[1746695778899,0.8237,1938.9,1938.2,7.63449405]
[1746695779233,5.1587286,1938.5,1938.3,6.84344941]
[1746695779524,5.1587286,1938.5,1938.4,6.08]
[1746695780734,5.15846872,1938.6,1938.4,6.08]
[1746695781027,5.1586278,1938.5,1938.4,6.08]
[1746695782444,5.15821567,1938.7,1938.4,6.17433406]
[1746695782644,5.15797535,1938.8,1938.5,1.4946626]
[1746695782814,10.31601602,1938.8,1938.6,0.09432432]
[1746695783318,5.15809563,1938.7,1938.6,0.09432432]
[1746695784041,5.15801529,1938.8,1938.6,0.09432432]
[1746695785047,5.98218992,1939.1,1938.6,0.09432432]
[1746695785347,5.15802152,1938.8,1938.7,6.08]
[1746695786422,5.94492152,1938.8,1938.7,6.08]
[1746695786834,5.15809563,1938.7,1938.6,0.09432432]
[1746695787034,5.15916008,1938.3,1938.1,1.0362858]
[1746695787231,5.15916008,1938.3,1938.2,6.08]
[1746695787510,5.15916008,1938.3,1938.2,6.79162858]
[1746695788128,5.15900202,1938.4,1938.2,6.79162858]
[1746695788333,10.31813194,1938.4,1938.2,6.79162858]
[1746695788518,5.15916008,1938.3,1938.2,6.79162858]
[1746695789875,5.15916008,1938.3,1938.2,6.08]
[1746695790595,5.15916008,1938.3,1938.2,6.8391]
[1746695791657,5.15916008,1938.3,1938.2,7.05721853]
[1746695794019,5.15916008,1938.3,1938.2,6.29811853]
[1746695804436,5.98276008,1938.3,1938.2,6.29811853]
[1746695805631,5.15916008,1938.3,1938.2,6.29811853]
[1746695805817,5.15916008,1938.3,1938.2,6.93736525]
[1746695806202,5.15889911,1938.4,1938.2,6.93736525]
[1746695806533,5.15916008,1938.3,1938.2,6.93736525]
[1746695807609,0.7618,1938.7,1938.2,15.47266122]
[1746695807610,5.91998012,1938.7,1938.2,15.47266122]
[1746695807813,5.15797543,1938.8,1938.4,5.96368322]
[1746695808024,5.15812364,1938.7,1938.5,0.21821171]
[1746695808407,5.15797543,1938.8,1938.6,6.17432432]
[1746695808723,5.15797543,1938.8,1938.7,6.29781666]
[1746695811967,5.94037543,1938.8,1938.7,6.29781666]
[1746695812333,7.05017362,1938.8,1938.7,0.21781666]
[1746695812834,5.1587879,1938.5,1938.3,9.5177374]
[1746695813045,7.05006365,1938.8,1938.3,9.5177374]
[1746695813046,5.15797221,1938.8,1938.4,0.98297614]
[1746695813238,5.15839991,1938.6,1938.4,0.98297614]
[1746695813562,5.15839991,1938.6,1938.5,3.4377374]
[1746695813868,5.15839991,1938.6,1938.5,4.09648735]
[1746695816373,5.15839991,1938.6,1938.5,10.17648735]
[1746695816767,5.15839991,1938.6,1938.5,6.73874995]
[1746695817275,5.15839991,1938.6,1938.5,6.2966786]
[1746695825997,5.44782002,1938.6,1938.5,6.2966786]
[1746695828388,5.44782002,1938.6,1938.5,0.2166786]
[1746695828776,5.15889393,1938.4,1938.3,0.09433892]
[1746695829095,5.15889393,1938.4,1938.3,6.17433892]
[1746695832498,5.15873798,1938.5,1938.3,9.31371426]
[1746695834362,5.15873798,1938.5,1938.4,6.08]
[1746695836668,5.15873798,1938.5,1938.4,6.29636511]
[1746695839410,5.92603798,1938.5,1938.4,6.29636511]
[1746695840280,6.21572959,1938.5,1938.4,6.29636511]
[1746695841498,7.86899787,1938.5,1938.4,6.29636511]
[1746695843273,7.86899787,1938.5,1938.4,0.21636511]
[1746695843802,9.62583932,1938.5,1938.4,0.21636511]
[1746695843982,7.86899787,1938.5,1938.4,0.21636511]
[1746695844301,5.93342627,1938.2,1938.1,6.08]
[1746695844499,7.04269538,1938.2,1938.1,6.08]
[1746695844706,7.33238699,1938.2,1938.1,6.08]
[1746695846909,5.44911788,1938.2,1938.1,6.08]
[1746695847114,5.44911788,1938.2,1938.1,6.8426]
[1746695847301,0.28969161,1938.2,1938.1,8.59944145]
[1746695847618,5.44911788,1938.2,1938.1,8.59944145]
[1746695847811,5.44911788,1938.2,1938.1,7.70254415]
[1746695848033,5.44911788,1938.2,1938.1,6.08]
[1746695848034,5.14713961,1938.2,1938.1,6.08]
[1746695849319,5.15995872,1938.0,1937.9,7.28020942]
[1746695849818,5.16022498,1937.9,1937.8,9.5177374]
[1746695850018,5.16022498,1937.9,1937.8,3.4377374]
[1746695851614,5.16022498,1937.9,1937.8,3.63806847]
[1746695852923,6.26750335,1937.9,1937.8,3.63806847]
[1746695853588,7.02800335,1937.9,1937.8,3.63806847]
[1746695853812,7.31706049,1937.9,1937.8,0.20033107]
[1746695854019,5.16102394,1937.6,1937.5,6.08]
[1746695854193,5.16102394,1937.6,1937.5,6.28092418]
[1746695854594,5.98832394,1937.6,1937.5,6.28092418]
[1746695856031,5.16102394,1937.6,1937.5,6.28092418]
[1746695856395,5.16102394,1937.6,1937.5,8.66585805]
[1746695857234,5.16092509,1937.7,1937.5,8.66585805]
[1746695857905,5.16030666,1937.9,1937.6,0.8214]
[1746695858121,5.16043213,1937.9,1937.6,0.8214]
[1746695858331,10.32090813,1937.9,1937.7,6.28052875]
[1746695858494,10.32090813,1937.9,1937.7,6.99072163]
[1746695859202,5.16049127,1937.8,1937.7,6.99072163]
[1746695859508,0.8139,1938.3,1937.7,8.74756308]
[1746695859708,5.16007125,1938.0,1937.8,6.8785]
[1746695860020,5.15986807,1938.1,1937.9,0.20212066]
[1746695860206,10.31981809,1938.1,1937.8,6.8785]
[1746695860406,5.15986807,1938.1,1937.9,0.88997066]
[1746695860620,5.15995872,1938.0,1937.9,0.88997066]
[1746695862016,5.15995872,1938.0,1937.9,0.20212066]
[1746695862217,5.16022498,1937.9,1937.8,6.08]
[1746695862735,5.16022498,1937.9,1937.8,6.28231832]
[1746695863443,5.94102498,1937.9,1937.8,6.28231832]
[1746695864009,5.94102498,1937.9,1937.8,6.08]
[1746695864213,7.05112335,1937.9,1937.8,6.08]
[1746695865158,7.3399138,1937.9,1937.8,6.08]
[1746695867248,5.16129032,1937.5,1937.4,6.08]
[1746695867404,5.16129032,1937.5,1937.4,6.2845185]
[1746695867746,5.16120742,1937.6,1937.4,6.2845185]
[1746695867934,5.16098079,1937.7,1937.5,0.62845185]
[1746695867935,10.32199843,1937.7,1937.5,0.62845185]
[1746695868136,5.16097061,1937.7,1937.6,0.7913]
[1746695868335,5.16066305,1937.8,1937.6,0.99542301]
[1746695869253,5.16075759,1937.7,1937.6,0.99542301]
[1746695869548,5.16054957,1937.8,1937.6,0.99542301]
[1746695869722,10.32127991,1937.8,1937.6,0.99542301]
[1746695869921,5.16039531,1937.9,1937.6,0.99542301]
[1746695870146,5.16039531,1937.9,1937.6,7.07542301]
[1746695870448,5.16039531,1937.9,1937.7,0.7075423]
[1746695870650,5.16049127,1937.8,1937.7,0.7075423]
[1746695872550,11.25942273,1938.1,1937.8,5.955291]
[1746695872551,5.15988101,1938.1,1937.8,5.955291]
[1746695872867,5.15952909,1938.2,1938.0,0.7948]
[1746695872868,5.15943411,1938.2,1938.0,0.7948]
[1746695873157,5.15969248,1938.1,1938.0,6.8748]
[1746695873328,5.15943411,1938.2,1938.0,7.86743969]
[1746695873856,5.15932895,1938.3,1938.0,7.86743969]
[1746695874414,5.15932895,1938.3,1938.0,7.96179322]
[1746695874853,5.15932895,1938.3,1938.0,13.12174199]
[1746695875216,5.159033,1938.4,1938.0,13.12174199]
[1746695875541,5.159033,1938.4,1938.1,1.36376629]
[1746695875851,5.159033,1938.4,1938.1,6.52345053]
[1746695876054,5.1583617,1938.6,1938.1,1.36376629]
[1746695876353,5.15930066,1938.3,1938.2,6.08]
[1746695879052,5.94990066,1938.3,1938.2,6.08]
[1746695879259,5.15969248,1938.1,1938.0,0.09435353]
[1746695879458,5.15969248,1938.1,1938.0,0.29404551]
[1746695882452,6.1916148,1938.1,1938.0,0.19969198]
[1746695882673,5.16022498,1937.9,1937.8,6.08]
[1746695882865,5.16049127,1937.8,1937.7,6.08]
[1746695883569,5.16075759,1937.7,1937.6,3.4377374]
[1746695883863,5.16075759,1937.7,1937.6,9.5177374]
[1746695884574,5.16075759,1937.7,1937.6,6.08]
[1746695888387,5.16075759,1937.7,1937.6,6.688]
[1746695892045,5.16075759,1937.7,1937.6,6.08]
[1746695893879,5.16049127,1937.8,1937.6,6.8774]
[1746695894067,5.16049127,1937.8,1937.6,8.63609474]
[1746695894272,5.16049127,1937.8,1937.7,6.08]
[1746695894746,10.32070064,1937.9,1937.7,6.08]
[1746695894941,5.16049127,1937.8,1937.7,6.94360947]
[1746695896690,5.16049127,1937.8,1937.7,7.14395345]
[1746695897153,5.16040174,1937.9,1937.7,7.97545345]
[1746695897483,5.16009867,1938.0,1937.7,8.02705741]
[1746695897683,5.16009867,1938.0,1937.8,0.80270574]
[1746695897887,5.16009867,1938.0,1937.9,0.19994866]
[1746695898102,5.16009867,1938.0,1937.8,0.80270574]
[1746695898392,5.15977668,1938.1,1937.9,0.19994866]
[1746695898700,5.15977668,1938.1,1937.9,6.08]
[1746695898906,5.15995872,1938.0,1937.9,6.08]
[1746695899061,10.31970983,1938.1,1937.9,6.08]
[1746695899259,5.15995872,1938.0,1937.9,6.08]
[1746695906219,5.15985996,1938.1,1937.9,6.69315996]
[1746695906422,5.15985996,1938.1,1938.0,0.7769]
[1746695906827,5.15995872,1938.0,1937.9,6.08]
[1746695907425,5.15995872,1938.0,1937.9,6.06771333]
[1746695911145,5.15985996,1938.1,1937.9,6.16207172]
[1746695911341,5.15985996,1938.1,1937.9,7.47019474]
[1746695911527,5.15995872,1938.0,1937.9,7.47019474]
[1746695911731,5.15995872,1938.0,1937.9,7.66863792]
[1746695911932,5.15995872,1938.0,1937.9,6.3605149]
[1746695915144,5.15985996,1938.1,1937.9,6.3605149]
[1746695915349,0.7557,1938.5,1938.0,7.69452637]
[1746695915560,5.1586278,1938.5,1938.1,6.41170085]
[1746695915866,5.15942627,1938.2,1938.1,6.36010997]
[1746695918874,6.19129566,1938.2,1938.1,6.36010997]
[1746695919463,6.98869566,1938.2,1938.1,6.36010997]
[1746695920170,7.27836152,1938.2,1938.1,6.36010997]
[1746695921470,7.27836152,1938.2,1938.1,0.29239664]
[1746695927145,6.48096152,1938.2,1938.1,0.29239664]
[1746695929352,5.44909213,1938.2,1938.1,0.29239664]
[1746695929654,0.28966586,1938.2,1938.1,0.29239664]
[1746695930153,5.15906922,1938.4,1938.1,0.29239664]
[1746695930331,5.15852954,1938.6,1938.2,13.74791682]
[1746695930525,5.15872235,1938.5,1938.2,8.58850807]
[1746695930729,5.4486166,1938.5,1938.3,0.19711269]
[1746695931257,5.44855365,1938.5,1938.3,0.19711269]
[1746695931756,5.1586594,1938.5,1938.3,0.19711269]
[1746695932358,5.15854329,1938.6,1938.3,6.26482602]
[1746695932525,5.15824035,1938.7,1938.3,7.69748413]
[1746695932725,5.15846267,1938.6,1938.3,7.69748413]
[1746695932942,5.15846267,1938.6,1938.4,0.7654]
[1746695933272,5.15846267,1938.6,1938.5,0.19671758]
[1746695933478,5.60424253,1938.8,1938.5,0.19671758]
[1746695933838,5.15810231,1938.7,1938.5,0.19671758]
[1746695934264,5.60438093,1938.8,1938.5,0.19671758]
[1746695934461,5.1581051,1938.7,1938.5,0.19671758]
[1746695934859,5.15808544,1938.8,1938.6,6.84581333]
[1746695935060,5.15809563,1938.7,1938.6,6.06771333]
[1746695938480,5.98679563,1938.7,1938.6,6.06771333]
[1746695939282,5.1583617,1938.6,1938.5,0.09432919]
[1746695939479,6.27287743,1938.6,1938.5,0.09432919]
[1746695940799,6.56203626,1938.6,1938.5,0.09432919]
[1746695941101,7.36443626,1938.6,1938.5,0.09432919]
[1746695942192,7.36443626,1938.6,1938.5,0.29011471]
[1746695943906,7.36443626,1938.6,1938.5,0.19578552]
[1746695944194,5.15889393,1938.4,1938.3,6.06771333]
[1746695945375,10.31799975,1938.4,1938.1,6.06771333]
[1746695945580,10.31799975,1938.4,1938.1,7.74389961]
[1746695945803,5.15889393,1938.4,1938.1,7.74389961]
[1746695946184,5.15880668,1938.5,1938.1,12.9551044]
[1746695946369,5.15890395,1938.4,1938.1,7.74389961]
[1746695946703,5.15890395,1938.4,1938.1,7.79549043]
[1746695946905,5.15890395,1938.4,1938.2,0.77954904]
[1746695948066,5.15916008,1938.3,1938.2,0.77954904]
[1746695948272,5.15916008,1938.3,1938.2,6.06771333]
[1746695950076,5.15942627,1938.2,1938.1,0.09434866]
[1746695950468,5.44866954,1938.2,1938.1,0.09434866]
[1746695952588,5.15995872,1938.0,1937.9,6.06771333]
[1746695954333,5.16022498,1937.9,1937.8,6.06771333]
[1746695955223,5.16004447,1938.0,1937.8,6.06771333]
[1746695955518,5.15972657,1938.1,1937.8,6.97448466]
[1746695956736,5.15989886,1938.1,1937.9,0.16554523]
[1746695956889,5.15989886,1938.1,1937.9,0.95384523]
[1746695957826,5.15989886,1938.1,1937.9,2.71253997]
[1746695958000,10.31982725,1938.1,1937.9,2.71253997]
[1746695958321,5.15995872,1938.0,1937.9,0.95384523]
[1746695959326,5.15995872,1938.0,1937.9,0.16554523]
[1746695959892,5.16022498,1937.9,1937.8,6.06771333]
[1746695960593,5.16015506,1938.0,1937.8,6.06771333]
[1746695960928,5.15994804,1938.1,1937.8,7.05100466]
[1746695961128,5.15996086,1938.0,1937.8,7.05100466]
[1746695961423,10.31987243,1938.1,1937.8,7.05100466]
[1746695961600,5.15992439,1938.1,1937.8,7.05100466]
[1746695961808,5.16004344,1938.0,1937.8,7.05100466]
[1746695962003,5.15992439,1938.1,1937.9,0.70510047]
[1746695962317,5.15953076,1938.2,1938.0,0.7853]
[1746695962516,5.15933241,1938.3,1938.0,0.7853]
[1746695963110,10.31871285,1938.3,1938.0,0.7853]
[1746695963309,5.15947854,1938.2,1938.0,0.7853]
[1746695963630,5.15947854,1938.2,1938.0,1.62622178]
[1746695966342,5.15947854,1938.2,1938.1,6.06771333]
[1746695966540,5.15934543,1938.3,1938.1,6.06771333]
[1746695968149,11.22572226,1938.6,1938.1,6.06771333]
[1746695968150,5.15906911,1938.4,1938.1,6.06771333]
[1746695968309,5.15917101,1938.3,1938.1,6.06771333]
[1746695968515,5.15917101,1938.3,1938.1,7.35309679]
[1746695969643,10.31854261,1938.3,1938.1,7.35309679]
[1746695969848,5.15942627,1938.2,1938.1,6.06771333]
[1746695971656,5.15942627,1938.2,1938.1,6.23288992]
[1746695975735,5.15917101,1938.3,1938.1,6.23288992]
[1746695975969,10.31854421,1938.3,1938.1,6.23288992]
[1746695976132,5.15942627,1938.2,1938.1,6.23288992]
[1746695976664,5.15917101,1938.3,1938.1,6.83271843]
[1746695976869,0.8156,1939.0,1938.3,0.77]
[1746695977079,5.15845851,1938.6,1938.4,6.23225883]
[1746695977291,5.1586278,1938.5,1938.4,0.1645455]
[1746695977584,6.19033643,1938.5,1938.4,6.2445455]
[1746695977727,6.19033643,1938.5,1938.4,0.1645455]
[1746695977968,6.97053643,1938.5,1938.4,0.1645455]
[1746695978162,6.97053643,1938.5,1937.9,6.08]
[1746695978163,5.15995872,1938.0,1937.9,6.08]
[1746695979362,5.15987325,1938.1,1937.9,6.08]
[1746695979562,5.15956421,1938.2,1937.9,6.08]
[1746695979763,5.15977521,1938.1,1937.9,6.08]
[1746695980162,5.15922372,1938.3,1938.0,1.75869474]
[1746695980362,5.15896501,1938.4,1938.1,6.8313]
[1746695981371,5.15896501,1938.4,1938.1,8.7222547]
[1746695981571,5.15896501,1938.4,1938.1,8.77384537]
[1746695982379,5.15896501,1938.4,1938.1,13.93352203]
[1746695982699,5.15896501,1938.4,1938.1,13.88193136]
[1746695982863,5.15871615,1938.5,1938.1,13.88175315]
[1746695983064,5.15871615,1938.5,1938.2,1.38817532]
[1746695984013,5.15871615,1938.5,1938.3,6.08]
[1746695986705,5.15871615,1938.5,1938.4,0.16417309]
[1746695986910,5.15871615,1938.5,1938.4,6.24417309]
[1746695987076,5.15871615,1938.5,1938.4,7.03167309]
[1746695987273,5.15767796,1938.9,1938.4,38.25279814]
[1746695987477,5.92108944,1939.0,1938.6,4.75869474]
[1746695987823,5.15782958,1938.8,1938.7,0.16220746]
[1746695988029,5.15782958,1938.8,1938.6,3.0]
[1746695988530,5.15782958,1938.8,1938.7,0.16255319]
[1746695988948,5.15809563,1938.7,1938.5,6.08]
[1746695989594,5.15810026,1938.7,1938.5,6.08]
[1746695990018,5.15803328,1938.8,1938.5,6.08]
[1746695992035,0.7636,1939.0,1938.5,6.08]
[1746695992235,5.1583617,1938.6,1938.5,6.08]
[1746695992440,10.3164383,1938.7,1938.5,6.08]
[1746695992746,5.15810504,1938.7,1938.5,6.08]
[1746695993028,5.15810504,1938.7,1938.5,7.58864769]
[1746695993233,5.15810504,1938.7,1938.6,6.08]
[1746695998313,5.15773984,1938.9,1938.6,7.83869474]
[1746695998512,5.15809563,1938.7,1938.6,6.08]
[1746695998723,5.15809563,1938.7,1938.6,6.83886477]
[1746696000042,5.15809563,1938.7,1938.6,6.08]
[1746696001140,5.95399563,1938.7,1938.6,6.08]
[1746696001811,5.95399563,1938.7,1938.6,6.2415341]
[1746696002355,5.15809563,1938.7,1938.6,6.2415341]
[1746696003381,5.15799155,1938.8,1938.6,6.2415341]
[1746696004292,5.15809563,1938.7,1938.6,6.2415341]
[1746696004778,5.15801736,1938.8,1938.6,6.2415341]
[1746696005277,10.31609339,1938.8,1938.6,6.2415341]
[1746696005445,5.15809563,1938.7,1938.6,6.2415341]
[1746696006277,5.15770601,1938.9,1938.6,6.2415341]
[1746696006477,5.15770601,1938.9,1938.6,8.70194225]
[1746696007074,5.15784504,1938.8,1938.6,8.70194225]
[1746696007659,5.15784504,1938.8,1938.6,6.94324751]
[1746696008511,5.15809563,1938.7,1938.6,6.94324751]
[1746696008663,5.15809563,1938.7,1938.6,6.2415341]
[1746696009191,5.15761535,1938.9,1938.6,0.1615341]
[1746696009568,5.15792362,1938.8,1938.6,0.1615341]
[1746696009785,5.15761535,1938.9,1938.6,0.1615341]
[1746696010106,5.15761535,1938.9,1938.6,1.55496595]
[1746696010909,10.31540903,1938.9,1938.6,1.55496595]
[1746696011077,5.15761535,1938.9,1938.6,1.55496595]
[1746696011273,5.15783766,1938.8,1938.6,1.55496595]
[1746696012301,5.15772243,1938.9,1938.6,1.55496595]
[1746696012678,5.15786831,1938.8,1938.6,1.55496595]
[1746696013400,5.1577107,1938.9,1938.6,1.55496595]
[1746696013589,10.31552183,1938.9,1938.6,1.55496595]
[1746696013791,5.1577107,1938.9,1938.6,1.55496595]
[1746696014200,5.15784356,1938.8,1938.6,1.55496595]
[1746696014404,5.15784356,1938.8,1938.7,6.08]
[1746696014599,5.15784356,1938.8,1938.7,6.8434966]
[1746696014901,5.15784356,1938.8,1938.7,7.00496314]
[1746696015701,5.15780064,1938.9,1938.7,7.00496314]
[1746696015903,10.31558844,1938.9,1938.7,7.00496314]
[1746696016406,10.31556048,1938.9,1938.7,7.00496314]
[1746696016702,5.15777268,1938.9,1938.8,0.70049631]
[1746696016907,5.44766376,1938.9,1938.8,6.24126912]
[1746696018212,5.44745464,1938.9,1938.8,6.24126912]
[1746696020288,5.44745464,1938.9,1938.8,0.16126912]
[1746696026355,5.44745464,1938.9,1938.8,14.45067569]
[1746696026356,0.28989108,1938.9,1938.8,14.45067569]
[1746696026522,0.28989108,1938.9,1938.8,46.9802867]
[1746696026871,0.28989108,1938.9,1938.8,52.19854015]
[1746696027160,5.15662447,1939.3,1939.0,0.8252]
[1746696027308,5.15662447,1939.3,1939.1,6.28747133]
[1746696027715,5.15641525,1939.4,1939.1,6.28747133]
[1746696028447,5.15650506,1939.3,1939.1,6.28747133]
[1746696028647,5.15640177,1939.4,1939.2,0.62874713]
[1746696028949,5.1562426,1939.4,1939.3,0.98092079]
[1746696029443,5.15614692,1939.5,1939.3,3.98092079]
[1746696029635,5.15614692,1939.5,1939.3,4.0324805]
[1746696030149,5.14385441,1939.5,1939.3,4.0324805]
[1746696030344,5.14385441,1939.5,1939.4,0.40324805]
[1746696030512,5.14385441,1939.5,1939.4,6.63886969]
[1746696031050,5.95466803,1939.5,1939.4,6.63886969]
[1746696031214,5.95466803,1939.5,1939.4,6.23562164]
[1746696032048,5.97343161,1939.1,1939.0,6.08]
[1746696032418,5.97343161,1939.1,1939.0,6.34110637]
[1746696034176,5.97343161,1939.1,1939.0,0.26110637]
[1746696034878,6.26267897,1939.1,1939.0,0.26110637]
[1746696037270,7.40463397,1939.1,1939.0,0.26110637]
[1746696037765,5.15756356,1938.9,1938.8,0.09431459]
[1746696037972,5.15756356,1938.9,1938.8,0.35787742]
[1746696038196,5.15756356,1938.9,1938.8,0.09431459]
[1746696038392,5.15756356,1938.9,1938.8,0.35783766]
[1746696038672,5.15756356,1938.9,1938.8,0.09431459]
[1746696039073,5.15756356,1938.9,1938.8,0.35783766]
[1746696041583,6.71276024,1938.9,1938.8,0.35783766]
[1746696041737,7.00203554,1938.9,1938.8,0.35783766]
[1746696042380,5.44683886,1938.9,1938.8,0.35783766]
[1746696042990,5.15756356,1938.9,1938.8,0.35783766]
[1746696043156,5.15756356,1938.9,1938.8,0.26352307]
[1746696044190,5.15731238,1939.0,1938.8,2.02221781]
[1746696045494,5.15730727,1939.0,1938.8,2.02221781]
[1746696045654,5.15730727,1939.0,1938.8,2.82482314]
[1746696045853,5.15730727,1939.0,1938.8,2.02221781]
[1746696046666,5.1572122,1939.1,1938.8,2.02221781]
[1746696047290,10.31445375,1939.1,1938.9,6.08]
[1746696047489,5.1572122,1939.1,1939.0,0.24293524]
[1746696047992,5.1572122,1939.1,1939.0,0.99783524]
[1746696048385,5.15688087,1939.2,1939.0,0.99783524]
[1746696048592,5.15688087,1939.2,1939.0,1.70561876]
[1746696049304,5.15664339,1939.3,1939.0,12.94288971]
[1746696049514,5.15664339,1939.3,1939.0,7.78561876]
[1746696050306,5.15632632,1939.4,1939.0,14.70154801]
[1746696050491,5.15632632,1939.4,1939.1,5.20859635]
[1746696050699,5.1561492,1939.5,1939.3,0.772]
[1746696050907,5.1561492,1939.5,1939.4,0.24142073]
[1746696051070,5.1561492,1939.5,1939.3,6.852]
[1746696051410,5.1561492,1939.5,1939.4,0.24094386]
[1746696051915,1.23879314,1939.7,1939.4,6.32110282]
[1746696052215,5.15582764,1939.6,1939.4,6.32110282]
[1746696052508,5.15582764,1939.6,1939.4,7.0304131]
[1746696053119,5.15582764,1939.6,1939.5,6.08]
[1746696053291,5.58473362,1939.7,1939.5,6.32034369]
[1746696053689,5.1553362,1939.8,1939.6,0.8285]
[1746696053892,5.1553362,1939.8,1939.7,0.2407299]
[1746696054093,5.1553362,1939.8,1939.7,6.3207299]
[1746696056284,5.1553362,1939.8,1939.7,7.03565289]
[1746696058281,5.1553362,1939.8,1939.7,6.3207299]
[1746696058686,5.9339362,1939.8,1939.7,6.3207299]
[1746696060630,5.1553362,1939.8,1939.7,6.3207299]
[1746696061240,5.9607362,1939.8,1939.7,6.3207299]
[1746696062232,5.9607362,1939.8,1939.7,0.2407299]
[1746696062618,5.15622913,1939.5,1939.3,6.08]
[1746696062809,5.15623388,1939.4,1939.2,3.45738487]
[1746696063205,5.15622913,1939.5,1939.2,3.45738487]
[1746696063751,5.15624419,1939.4,1939.2,3.0]
[1746696063900,5.1561502,1939.5,1939.2,3.0]
[1746696064101,5.1561502,1939.5,1939.3,0.3]